bitfinex-derivatives/quotes_SOLF0:USTF0_20250829
["timestamp","ask_amount","ask_price","bid_price","bid_amount"]
[1756449746174,16.1323686,214.52,214.29,65.3208]
[1756449746463,7.0,214.53,214.33,72.4184]
[1756449746768,7.0,214.53,214.41,65.2827]
[1756449746968,7.0,214.53,214.43,16.1323686]
[1756449747165,7.0,214.53,214.41,7.11]
[1756449747365,7.0,214.53,214.45,0.03552747]
[1756449747864,29.57650713,214.5,214.22,29.57650713]
[1756449748065,294.74,214.53,214.23,7.11]
[1756449748267,204.2,214.52,214.23,7.11]
[1756449748467,65.2553,214.51,214.23,7.11]
[1756449748669,29.57650713,214.48,214.23,7.11]
[1756449749064,65.2672,214.47,214.23,7.11]
[1756449749266,65.2746,214.45,214.19,29.57650713]
[1756449749561,0.03291191,214.38,214.19,29.57650713]
[1756449749765,0.03291191,214.38,214.16,7.11]
[1756449749964,65.2862,214.41,214.16,7.11]
[1756449750173,65.2921,214.39,214.16,7.11]
[1756449750372,0.02979916,214.29,214.16,7.11]
[1756449750762,65.3061,214.35,214.16,7.11]
[1756449750967,65.3111,214.33,214.16,7.11]
[1756449751166,0.03070807,214.25,214.1,29.57650713]
[1756449751676,65.3227,214.29,214.1,29.57650713]
[1756449751970,0.03116747,214.2,214.1,29.57650713]
[1756449753470,0.03116747,214.2,214.09,7.11]
[1756449754366,268.9011,214.36,214.12,7.13997234]
[1756449754565,203.6,214.36,214.12,7.13997234]
[1756449754872,203.6,214.36,214.12,7.11]
[1756449755063,203.6,214.36,214.17,7.11]
[1756449755267,69.4723,214.45,214.22,7.11]
[1756449755567,65.2768,214.44,214.22,7.11]
[1756449755767,65.2768,214.44,214.24,0.03400819]
[1756449755969,65.2768,214.44,214.25,7.11]
[1756449756169,4.1959,214.47,214.25,7.11]
[1756449756471,65.2776,214.44,214.32,0.03393071]
[1756449756666,65.2743,214.45,214.32,0.03393071]
[1756449756667,65.2653,214.48,214.32,0.03393071]
[1756449756871,65.2653,214.48,214.31,7.19]
[1756449757367,65.2653,214.48,214.37,0.03526507]
[1756449757368,65.2712,214.46,214.37,0.03526507]
[1756449757568,359.99,214.53,214.38,7.19]
[1756449757569,65.2564,214.51,214.38,7.19]
[1756449757874,69.4513,214.51,214.38,7.19]
[1756449758073,72.25,214.53,214.38,7.19]
[1756449758267,72.25,214.53,214.42,0.03201159]
[1756449758464,65.2566,214.51,214.42,0.03201159]
[1756449758664,72.25,214.53,214.42,0.03201159]
[1756449758867,65.2588,214.5,214.42,0.03201159]
[1756449759071,130.5562,214.44,214.42,1.159e-05]
[1756449759466,203.68,214.43,214.42,1.159e-05]
[1756449759767,65.326,214.28,214.17,7.19]
[1756449759973,65.3383,214.24,214.17,7.19]
[1756449760165,65.3806,214.1,213.95,29.57650713]
[1756449760364,65.3782,214.11,213.79,291.35309181]
[1756449760572,65.3626,214.16,213.9,29.57650713]
[1756449760766,29.57650713,214.22,213.96,29.57650713]
[1756449760973,65.3291,214.27,214.01,29.57650713]
[1756449761174,65.3018,214.36,214.01,29.57650713]
[1756449761376,29.57650713,214.37,214.07,0.03184909]
[1756449761571,29.57650713,214.37,214.11,29.57650713]
[1756449761771,241.53650713,214.44,214.11,29.57650713]
[1756449761974,306.81400713,214.44,214.11,29.57650713]
[1756449762174,65.2833,214.42,214.25,0.03139398]
[1756449762370,65.3243,214.29,214.25,0.03139398]
[1756449762573,65.3297,214.27,214.05,29.57650713]
[1756449762878,0.0325534,214.3,214.05,29.57650713]
[1756449763075,73.0847,214.35,214.05,29.57650713]
[1756449763274,7.78,214.35,214.05,94.97130713]
[1756449763470,7.78,214.35,214.08,29.57650713]
[1756449763671,29.57650713,214.42,214.14,65.3672]
[1756449763869,65.2797,214.43,214.18,29.57650713]
[1756449764069,65.2797,214.43,214.07,65.3868]
[1756449764070,65.2996,214.37,214.14,29.57650713]
[1756449764277,65.2996,214.37,214.08,29.57650713]
[1756449764278,65.3045,214.35,214.08,29.57650713]
[1756449764571,0.02965345,214.28,214.09,7.19]
[1756449764870,73.1018,214.3,214.09,7.19]
[1756449765072,0.0312636,214.21,214.09,7.19]
[1756449765977,65.3195,214.3,214.09,7.19]
[1756449766272,65.3199,214.3,214.13,0.032643]
[1756449766471,37.35650713,214.31,214.09,7.19]
[1756449766472,7.78,214.31,214.09,7.19]
[1756449766873,7.78,214.41,214.13,7.19]
[1756449767172,7.78,214.41,214.18,0.03014089]
[1756449767678,7.78,214.41,214.15,7.19]
[1756449767880,7.78,214.41,214.27,0.033757]
[1756449768074,73.067,214.41,214.27,0.033757]
[1756449768270,7.78,214.41,214.21,7.19]
[1756449768775,7.78,214.41,214.32,0.03033341]
[1756449769678,29.57650713,214.47,214.32,0.03033341]
[1756449770075,29.57650713,214.47,214.27,7.19]
[1756449770375,7.0,214.53,214.37,0.03113031]
[1756449770376,36.57650713,214.53,214.37,0.03113031]
[1756449770775,36.57650713,214.53,214.34,7.19]
[1756449771178,7.0,214.53,214.43,0.03182738]
[1756449771473,7.78,214.52,214.43,0.03182738]
[1756449772066,207.2,214.51,214.43,0.03182738]
[1756449772468,7.0,214.53,214.43,0.03182738]
[1756449773973,7.0,214.53,214.44,7.19]
[1756449775076,7.0,214.53,214.43,0.03182738]
[1756449775467,7.0,214.53,214.44,7.19]
[1756449775677,7.0,214.53,214.44,72.4637]
[1756449775874,7.0,214.53,214.44,72.9237]
[1756449776078,7.0,214.53,214.44,72.4637]
[1756449776273,7.0,214.53,214.44,76.6598]
[1756449776470,7.0,214.53,214.44,7.19]
[1756449776677,7.0,214.53,214.43,0.03182738]
[1756449776973,65.2569,214.51,214.43,0.03182738]
[1756449777180,24.98521428,214.53,214.43,0.03182738]
[1756449777369,208.98,214.52,214.43,0.03182738]
[1756449777574,90.23531428,214.53,214.27,72.517]
[1756449777575,7.78,214.5,214.28,65.325]
[1756449777776,7.78,214.5,214.27,7.19]
[1756449777777,208.86,214.49,214.27,7.19]
[1756449777971,17.98521428,214.48,214.27,72.5182]
[1756449778170,208.86,214.49,214.3,7.19]
[1756449778375,7.78,214.5,214.31,65.3154]
[1756449778576,7.0,214.53,214.35,65.3032]
[1756449778778,7.0,214.53,214.37,69.4928]
[1756449778977,7.0,214.53,214.36,7.19]
[1756449779176,17.98521428,214.51,214.29,7.19]
[1756449779372,17.98521428,214.47,214.24,65.3362]
[1756449779574,65.30388187,214.45,214.22,72.5324]
[1756449779881,17.98521428,214.42,214.22,7.19]
[1756449780278,0.03246979,214.36,214.25,65.3334]
[1756449780473,0.03246979,214.36,214.26,69.5307]
[1756449780673,0.03246979,214.36,214.24,65.3369]
[1756449780879,7.78,214.44,214.25,4.2]
[1756449781078,7.78,214.44,214.23,65.3382]
[1756449781079,7.78,214.39,214.22,7.19]
[1756449781272,0.03181456,214.32,214.19,65.3524]
[1756449781778,208.68,214.32,214.15,65.3637]
[1756449781983,7.78,214.34,214.2,65.3486]
[1756449782178,7.78,214.4,214.19,65.3516]
[1756449782383,7.78,214.4,214.21,65.3463]
[1756449782778,7.78,214.4,214.24,65.3367]
[1756449782978,0.03328202,214.33,214.24,65.3367]
[1756449783281,0.03328202,214.33,214.27,4.1996]
[1756449783478,0.03328202,214.33,214.29,65.3222]
[1756449783678,0.03328202,214.33,214.3,7.19]
[1756449783879,0.03328202,214.33,214.21,83.33151428]
[1756449783880,0.03328202,214.33,214.23,7.19]
[1756449784277,0.03328202,214.33,214.21,65.3463]
[1756449784479,0.03328202,214.33,214.22,65.342]
[1756449784680,0.03328202,214.33,214.21,65.3463]
[1756449784681,0.03328202,214.33,214.29,65.3192]
[1756449784873,0.03328202,214.33,214.26,76.7189]
[1756449785075,0.03328202,214.33,214.26,7.19]
[1756449786082,0.03328202,214.33,214.27,69.5264]
[1756449786377,0.03328202,214.33,214.23,65.3396]
[1756449786578,0.03328202,214.33,214.3,65.3187]
[1756449786784,7.18,214.49,214.33,65.3085]
[1756449787079,214.1,214.59,214.38,4.1974]
[1756449787080,7.18,214.56,214.38,4.1974]
[1756449787483,7.18,214.56,214.4,65.2878]
[1756449787786,7.18,214.56,214.4,69.4847]
[1756449788284,7.18,214.56,214.44,0.03218942]
[1756449788480,7.18,214.56,214.44,65.30798942]
[1756449788985,7.18,214.56,214.44,0.03218942]
[1756449789279,222.34,214.52,214.44,0.03218942]
[1756449789480,7.0,214.53,214.44,65.30758942]
[1756449790183,7.0,214.53,214.45,69.4695]
[1756449790484,7.0,214.53,214.44,0.03218942]
[1756449791284,7.18,214.52,214.44,0.03218942]
[1756449791484,7.18,214.52,214.31,72.3536]
[1756449791485,7.18,214.5,214.31,72.3536]
[1756449791782,7.21000975,214.5,214.32,65.313]
[1756449791984,7.21000975,214.5,214.37,65.2969]
[1756449792285,7.18,214.5,214.31,72.3556]
[1756449792583,7.18,214.5,214.35,65.3029]
[1756449792786,7.18,214.5,214.41,65.2839]
[1756449792982,7.0,214.53,214.42,69.4789]
[1756449793188,0.03098458,214.48,214.42,69.4789]
[1756449793589,0.03098458,214.48,214.39,4.1973]
[1756449793789,0.03098458,214.48,214.41,65.2836]
[1756449794083,7.0,214.53,214.48,65.262]
[1756449794285,7.0,214.53,214.51,65.2539]
[1756449794488,7.18,214.69,214.53,65.249]
[1756449794689,7.18,214.69,214.51,65.2545]
[1756449795087,7.18,214.69,214.52,65.2514]
[1756449795287,7.18,214.69,214.52,71.4057]
[1756449795488,7.18,214.69,214.58,0.03068494]
[1756449795991,7.0,214.72,214.58,65.26398494]
[1756449796287,7.0,214.72,214.58,0.03068494]
[1756449796487,7.18,214.71,214.56,4.1939]
[1756449796790,7.18,214.71,214.63,0.03222011]
[1756449797186,25.16521428,214.71,214.52,4.1946]
[1756449797390,7.18,214.7,214.53,65.2481]
[1756449797586,7.18,214.69,214.47,65.2665]
[1756449797790,65.224,214.62,214.39,1.99]
[1756449797988,7.18,214.58,214.39,69.4887]
[1756449798188,7.18,214.58,214.39,4.1971]
[1756449798388,7.18,214.58,214.42,65.2799]
[1756449798588,0.03007704,214.51,214.43,4.1963]
[1756449798988,0.03007704,214.51,214.39,67.2795]
[1756449799185,0.03007704,214.51,214.43,65.2787]
[1756449799392,0.03007704,214.51,214.41,65.2847]
[1756449799584,0.03007704,214.51,214.39,1.99]
[1756449799785,0.03007704,214.51,214.36,65.2981]
[1756449799988,25.19529132,214.51,214.31,1.99]
[1756449800283,17.98521428,214.45,214.31,1.99]
[1756449800488,17.98521428,214.41,214.23,65.3395]
[1756449800689,25.16521428,214.41,214.25,4.1998]
[1756449801195,25.16521428,214.41,214.21,69.5472]
[1756449801486,0.03321627,214.35,214.22,65.3416]
[1756449801691,0.03321627,214.35,214.29,65.3216]
[1756449801892,65.2473,214.54,214.29,65.3216]
[1756449801893,7.18,214.56,214.4,65.2875]
[1756449802095,7.18,214.56,214.41,65.2852]
[1756449802291,7.18,214.56,214.38,65.2942]
[1756449802488,7.18,214.56,214.39,1.96]
[1756449802689,287.22,214.61,214.43,65.2788]
[1756449803086,287.22,214.61,214.5,0.03130645]
[1756449803791,7.18,214.57,214.36,65.2999]
[1756449803991,7.18,214.51,214.29,65.3198]
[1756449804197,7.18,214.46,214.26,67.3194]
[1756449804391,7.18,214.46,214.28,65.3233]
[1756449804598,7.18,214.46,214.32,65.3124]
[1756449804786,235.94521428,214.5,214.33,65.3091]
[1756449804986,7.18,214.54,214.38,65.2941]
[1756449805190,25.16521428,214.6,214.44,65.2764]
[1756449805388,7.18,214.6,214.42,69.4787]
[1756449805691,0.03014909,214.48,214.42,65.2822]
[1756449805892,7.18,214.6,214.44,65.276]
[1756449806087,7.18,214.6,214.48,65.264]
[1756449806291,287.22,214.61,214.48,65.2642]
[1756449806488,287.22,214.61,214.5,65.258]
[1756449806691,287.22,214.61,214.51,1.99]
[1756449806895,287.22,214.61,214.5,65.258]
[1756449807089,219.52,214.66,214.52,65.2518]
[1756449807296,219.52,214.66,214.51,65.2538]
[1756449807497,37.2442396,214.63,214.43,65.2788]
[1756449807693,7.18,214.56,214.4,65.288]
[1756449807894,7.18,214.56,214.38,67.2823]
[1756449808099,7.18,214.56,214.44,69.4727]
[1756449808300,7.18,214.56,214.38,1.99]
[1756449808797,37.2442396,214.61,214.44,65.2764]
[1756449809006,37.2442396,214.61,214.44,67.2664]
[1756449809197,37.2442396,214.61,214.46,65.2696]
[1756449809396,220.8,214.62,214.47,65.2653]
[1756449809597,7.18,214.64,214.46,65.2696]
[1756449809799,221.32,214.63,214.5,67.2485]
[1756449809992,221.32,214.63,214.52,65.2512]
[1756449810191,37.2442396,214.67,214.5,1.99]
[1756449810395,83.5632,214.72,214.52,65.2523]
[1756449810396,14.18,214.72,214.52,65.2523]
[1756449810599,259.8242396,214.71,214.53,4.1945]
[1756449811004,259.8242396,214.71,214.52,65.2523]
[1756449811204,259.8242396,214.71,214.52,4.1947]
[1756449811405,4.1913,214.7,214.5,1.99]
[1756449811605,222.58,214.71,214.5,1.99]
[1756449811899,37.2442396,214.69,214.49,65.2608]
[1756449812201,230.02,214.68,214.53,65.2484]
[1756449812500,222.84,214.68,214.55,69.4368]
[1756449812696,0.03087921,214.63,214.57,65.2359]
[1756449812899,0.03087921,214.63,214.58,4.1936]
[1756449813204,0.03087921,214.63,214.52,65.2519]
[1756449813205,0.03087921,214.63,214.59,1.99]
[1756449813398,0.03087921,214.63,214.52,67.2419]
[1756449813597,0.03087921,214.63,214.55,1.99]
[1756449813796,0.03087921,214.63,214.48,1.99]
[1756449814201,223.76,214.62,214.48,1.99]
[1756449814398,223.76,214.62,214.38,1.99]
[1756449814597,223.76,214.62,214.39,65.2893]
[1756449814903,37.2442396,214.73,214.51,1.99]
[1756449815099,7.18,214.74,214.53,1.99]
[1756449815304,296.1261,214.74,214.53,1.99]
[1756449815504,4.1911,214.71,214.53,1.99]
[1756449815704,69.3874,214.71,214.53,1.99]
[1756449815904,7.18,214.69,214.46,1.99]
[1756449816105,72.3816,214.69,214.46,1.99]
[1756449816297,0.0302348,214.64,214.46,1.99]
[1756449816506,65.1996,214.7,214.46,1.99]
[1756449816507,72.1941,214.72,214.5,1.99]
[1756449816697,4.1912,214.71,214.5,1.99]
[1756449816900,72.1941,214.72,214.5,1.99]
[1756449816901,65.1982,214.7,214.5,1.99]
[1756449817099,65.2022,214.69,214.5,1.99]
[1756449817300,0.03133865,214.63,214.5,1.99]
[1756449817808,65.201,214.69,214.5,1.99]
[1756449818005,65.2105,214.66,214.5,1.99]
[1756449818200,4.1922,214.65,214.5,1.99]
[1756449818405,65.2263,214.61,214.5,1.99]
[1756449818701,4.1923,214.65,214.46,4.1959]
[1756449819007,0.03022911,214.58,214.47,1.99]
[1756449819400,65.26492911,214.58,214.47,1.99]
[1756449819604,0.03022911,214.58,214.39,37.2442396]
[1756449819805,0.03022911,214.58,214.4,1.99]
[1756449820006,65.2334,214.59,214.4,1.99]
[1756449820199,65.2325,214.59,214.4,1.99]
[1756449820400,7.67,214.63,214.43,1.99]
[1756449820401,65.229,214.6,214.43,1.99]
[1756449820599,65.2057,214.68,214.47,1.99]
[1756449820810,4.1924,214.64,214.47,1.99]
[1756449821008,65.2222,214.62,214.47,1.99]
[1756449821204,65.2133,214.65,214.47,1.99]
[1756449821399,65.2025,214.69,214.48,1.99]
[1756449821600,7.67,214.7,214.51,65.2539]
[1756449821601,0.02954234,214.58,214.51,65.2539]
[1756449821812,7.0,214.72,214.53,1.96]
[1756449822009,4.1912,214.71,214.56,0.03145508]
[1756449822207,7.0,214.72,214.53,67.2083]
[1756449822410,4.1916,214.68,214.53,1.96]
[1756449822711,7.67,214.71,214.51,65.2553]
[1756449823112,65.1981,214.7,214.59,0.03342756]
[1756449823313,7.0,214.72,214.59,0.03342756]
[1756449823510,7.0,214.72,214.6,1.96]
[1756449824215,7.0,214.72,214.64,0.03487498]
[1756449824508,7.67,214.71,214.64,0.03487498]
[1756449824710,7.67,214.67,214.64,0.03487498]
[1756449824905,7.0,214.72,214.64,0.03487498]
[1756449825109,11.191,214.72,214.64,0.03487498]
[1756449825308,72.192,214.72,214.64,0.03487498]
[1756449825608,7.0,214.72,214.64,0.03487498]
[1756449826909,7.67,214.71,214.64,0.03487498]
[1756449827213,0.03152023,214.7,214.52,6.1546]
[1756449827605,7.67,214.71,214.55,65.243]
[1756449827805,7.67,214.71,214.57,65.2367]
[1756449828111,91.79949476,214.71,214.47,65.267]
[1756449828418,0.03293506,214.66,214.48,1.99]
[1756449828715,223.71293506,214.66,214.48,1.99]
[1756449828914,223.68,214.66,214.48,1.99]
[1756449829119,0.03171761,214.59,214.41,65.2839]
[1756449829311,0.03171761,214.59,214.43,1.99]
[1756449829510,65.2195,214.63,214.43,1.99]
[1756449829709,65.2222,214.62,214.43,1.99]
[1756449829915,0.03018008,214.53,214.43,1.99]
[1756449830107,0.03018008,214.53,214.44,4.1963]
[1756449830313,0.03018008,214.53,214.44,65.2765]
[1756449830513,0.03018008,214.53,214.43,1.99]
[1756449831613,7.67,214.52,214.35,4.198]
[1756449831813,7.67,214.52,214.32,1.99]
[1756449832113,7.67,214.52,214.34,4.1981]
[1756449832314,0.03450474,214.44,214.35,1.99]
[1756449832519,0.03450474,214.44,214.33,67.3002]
[1756449832815,0.03450474,214.44,214.33,67.2994]
[1756449833014,26.60459476,214.5,214.33,1.99]
[1756449833314,0.03322791,214.41,214.23,5.16455442]
[1756449833518,0.03322791,214.41,214.29,65.3219]
[1756449833715,91.85469476,214.53,214.3,1.99]
[1756449833716,69.4642,214.47,214.3,1.99]
[1756449833910,65.2742,214.45,214.3,1.99]
[1756449834112,0.03504038,214.37,214.3,1.99]
[1756449834716,26.60459476,214.51,214.34,4.1982]
[1756449834911,26.60459476,214.51,214.32,65.3119]
[1756449835119,223.68,214.54,214.36,65.2996]
[1756449835413,7.67,214.55,214.38,65.2946]
[1756449835613,356.4827,214.6,214.39,1.96]
[1756449835821,287.06,214.6,214.41,65.2847]
[1756449836023,352.2885,214.6,214.44,0.03212147]
[1756449836216,7.67,214.55,214.44,0.03212147]
[1756449836421,7.67,214.55,214.39,1.96]
[1756449836722,26.60459476,214.57,214.47,0.03319988]
[1756449837117,26.60459476,214.62,214.47,0.03319988]
[1756449837421,223.74,214.64,214.48,1.96]
[1756449837619,250.34459476,214.64,214.48,1.96]
[1756449837819,26.60459476,214.64,214.52,0.03296834]
[1756449838017,34.27459476,214.69,214.52,0.03296834]
[1756449838218,26.60459476,214.69,214.55,65.243]
[1756449838421,26.60459476,214.69,214.54,1.96]
[1756449838618,7.67,214.68,214.48,1.96]
[1756449838821,231.43,214.68,214.6,0.03094723]
[1756449839021,223.76,214.67,214.6,0.03094723]
[1756449839624,7.67,214.68,214.6,0.03094723]
[1756449839818,7.0,214.72,214.6,0.03094723]
[1756449840218,7.67,214.71,214.6,0.03094723]
[1756449841524,7.0,214.72,214.6,67.21854723]
[1756449841719,7.0,214.72,214.6,71.41164723]
[1756449841920,7.0,214.72,214.6,1.99094723]
[1756449842425,14.67,214.72,214.6,0.03094723]
[1756449843426,7.0,214.72,214.6,0.03094723]
[1756449843623,7.0,214.72,214.61,65.2247]
[1756449844126,7.0,214.72,214.6,65.2276]
[1756449844325,7.0,214.72,214.64,0.03364061]
[1756449844720,7.67,214.71,214.64,0.03364061]
[1756449845528,7.0,214.72,214.64,0.03364061]
[1756449846233,231.37,214.71,214.64,0.03364061]
[1756449846727,7.0,214.72,214.64,0.03364061]
[1756449847927,14.16,214.72,214.64,0.03364061]
[1756449849223,65.1979,214.7,214.64,0.03364061]
[1756449849728,65.1979,214.7,214.49,1.97]
[1756449849729,72.39456928,214.69,214.49,1.97]
[1756449850026,7.19366928,214.69,214.49,1.97]
[1756449850227,7.16,214.69,214.49,1.97]
[1756449850624,65.2042,214.68,214.49,1.97]
[1756449850928,0.0313876,214.61,214.49,1.97]
[1756449852220,0.0313876,214.61,214.43,26.60459476]
[1756449852421,0.0313876,214.61,214.43,28.60459476]
[1756449852619,4.1926,214.63,214.43,28.60459476]
[1756449852929,0.03033005,214.54,214.46,5.16455442]
[1756449853128,7.16,214.67,214.48,26.60459476]
[1756449853429,65.2099,214.66,214.48,26.63550586]
[1756449853726,4.1942,214.55,214.38,1.97]
[1756449854034,223.68,214.54,214.38,1.97]
[1756449854523,7.16,214.56,214.44,0.03358184]
[1756449854922,4.1936,214.59,214.44,0.03358184]
[1756449855121,65.2312,214.59,214.44,0.03358184]
[1756449855323,4.1932,214.6,214.43,1.97]
[1756449855520,72.3828,214.62,214.43,1.97]
[1756449855720,7.16,214.62,214.43,1.97]
[1756449855931,7.16,214.68,214.5,0.02951295]
[1756449856231,7.16,214.68,214.51,1.97]
[1756449856436,7.16,214.68,214.51,71.4202]
[1756449856634,7.16,214.68,214.57,0.0338328]
[1756449856927,4.1919,214.67,214.57,0.0338328]
[1756449857229,7.16,214.68,214.57,0.0338328]
[1756449857426,510.74,214.7,214.57,0.0338328]
[1756449857733,33.60459476,214.72,214.57,2.0038328]
[1756449857734,7.0,214.72,214.57,2.0038328]
[1756449858026,7.0,214.72,214.57,1.97]
[1756449858223,7.0,214.72,214.62,0.02949989]
[1756449862830,7.16,214.71,214.62,0.02949989]
[1756449863531,7.16,214.71,214.51,1.97]
[1756449863726,7.16,214.71,214.54,69.44]
[1756449864031,7.16,214.71,214.57,65.2371]
[1756449864427,7.16,214.71,214.59,4.1932]
[1756449864630,7.16,214.71,214.55,65.2431]
[1756449864824,7.16,214.71,214.56,65.2385]
[1756449865030,7.16,214.71,214.56,4.1939]
[1756449865231,0.02957046,214.65,214.56,4.1939]
[1756449865531,0.02957046,214.65,214.59,65.2311]
[1756449865734,0.02957046,214.65,214.6,65.2267]
[1756449866131,5.14957046,214.72,214.61,2.0]
[1756449866328,5.14957046,214.72,214.61,26.60459476]
[1756449866629,1.878307,214.68,214.6,4.1932]
[1756449866934,5.14957046,214.72,214.58,65.2339]
[1756449867132,1.878307,214.66,214.58,4.1934]
[1756449867332,5.14957046,214.72,214.55,2.0]
[1756449867532,5.14957046,214.72,214.63,0.03393381]
[1756449868134,1.878307,214.64,214.63,0.03393381]
[1756449868338,9.038307,214.64,214.49,2.0]
[1756449868636,7.16,214.64,214.49,2.0]
[1756449868837,1.878307,214.59,214.49,2.0]
[1756449869043,1.878307,214.57,214.49,2.0]
[1756449869238,72.3771,214.64,214.48,26.60459476]
[1756449869439,7.16,214.64,214.48,26.60459476]
[1756449869635,0.02958667,214.58,214.48,28.64459476]
[1756449869842,0.02958667,214.58,214.54,2.04]
[1756449870035,0.02958667,214.58,214.55,2.04]
[1756449870243,7.16,214.7,214.55,65.2429]
[1756449870442,7.16,214.7,214.56,65.2394]
[1756449870638,1.878307,214.67,214.55,65.2429]
[1756449870842,7.16,214.7,214.54,2.04]
[1756449871045,7.16,214.7,214.52,65.252]
[1756449871248,7.16,214.7,214.51,65.2554]
[1756449871249,1.878307,214.64,214.53,65.2492]
[1756449871442,7.16,214.7,214.51,65.2554]
[1756449871644,1.878307,214.62,214.53,69.4434]
[1756449871840,7.16,214.7,214.53,69.4434]
[1756449872045,1.878307,214.64,214.55,65.2429]
[1756449872246,7.16,214.7,214.57,4.1936]
[1756449872446,7.16,214.7,214.53,28.61459476]
[1756449872646,7.16,214.7,214.54,69.44]
[1756449872853,1.878307,214.62,214.54,4.1943]
[1756449873146,7.16,214.7,214.54,4.1943]
[1756449873345,1.878307,214.64,214.56,4.1938]
[1756449873651,7.16,214.7,214.54,65.2459]
[1756449873854,5.14957046,214.72,214.58,65.2338]
[1756449874047,1.878307,214.71,214.57,2.01]
[1756449874254,5.14957046,214.72,214.57,2.01]
[1756449874450,1.878307,214.68,214.57,67.2467]
[1756449874651,5.14957046,214.72,214.57,67.2467]
[1756449874652,5.14957046,214.72,214.6,65.2277]
[1756449874949,5.14957046,214.72,214.63,4.1925]
[1756449875153,5.14957046,214.72,214.62,2.01]
[1756449875351,5.14957046,214.72,214.63,65.2172]
[1756449875653,5.14957046,214.72,214.64,65.2157]
[1756449875850,5.14957046,214.72,214.65,65.2126]
[1756449876054,5.14957046,214.72,214.64,65.2157]
[1756449876055,5.14957046,214.72,214.66,4.1919]
[1756449876553,5.14957046,214.72,214.62,2.01]
[1756449877154,1.878307,214.68,214.62,2.01]
[1756449877354,5.14957046,214.72,214.57,149.41346246]
[1756449877754,5.14957046,214.72,214.61,65.2248]
[1756449877955,5.14957046,214.72,214.63,65.2188]
[1756449878256,5.14957046,214.72,214.65,2.0]
[1756449878556,5.14957046,214.72,214.63,65.2187]
[1756449878557,5.14957046,214.72,214.67,65.2064]
[1756449878752,5.14957046,214.72,214.67,65.206]
[1756449878952,5.14957046,214.72,214.68,69.3948]
[1756449879153,5.14957046,214.72,214.64,65.2147]
[1756449879347,5.14957046,214.72,214.69,2.0]
[1756449879553,5.14957046,214.72,214.7,4.1912]
[1756449879954,5.14957046,214.72,214.63,70.38205442]
[1756449879955,5.14957046,214.72,214.63,65.2181]
[1756449880252,1.878307,214.71,214.62,65.2217]
[1756449880455,5.14957046,214.72,214.62,65.2217]
[1756449880456,5.14957046,214.72,214.65,65.2128]
[1756449880659,5.14957046,214.72,214.64,2.0]
[1756449881359,5.14957046,214.72,214.65,83.81620503]
[1756449881558,5.14957046,214.72,214.67,65.2059]
[1756449881754,5.14957046,214.72,214.69,4.1913]
[1756449881963,5.14957046,214.72,214.65,18.60420503]
[1756449882161,5.14957046,214.72,214.66,65.2098]
[1756449882460,1.878307,214.68,214.65,18.60420503]
[1756449882661,5.14957046,214.72,214.64,65.215]
[1756449882863,1.878307,214.7,214.65,4.1921]
[1756449883057,5.14957046,214.72,214.69,18.60420503]
[1756449883265,5.14957046,214.72,214.69,296.08266227]
[1756449883555,7.15,214.86,214.74,65.1851]
[1756449883759,1.878307,214.83,214.73,65.1881]